Cogmind - Beta 16.1 @@@ ROGUE MODE // 2026.02.23 @ 00:40:15 Player: TheSkyeDoctor Result: Self-destructed Performance ------------- Evolutions (4) 2000 Regions Visited (5) 1000 Robots Destroyed (34) 170 Value Destroyed (832) 832 Prototype IDs (16) 320 Alien Tech Used (0) 0 Bonus (358) 358 TOTAL SCORE: 4680 Bonus ------- Follower Combat Kills 407 Friendly Fire -49 Cogmind --------- Core Integrity 692/850 Matter 332/450 Energy 170/170 System Corruption 11% Temperature Cool (9) Movement Walking (260) Ox2 Location -6/Factory Parts ------- > --- POWER (1) -------- Light Antimatter Reactor > --- PROPULSION (2) --- Carbon-fiber Leg > --- UTILITY (6) ------ Large Storage Unit Compact Matter Pod Improved Terrain Scanner Terrain Scan Processor Improved Targeting Computer Gun Armor > --- WEAPON (6) ------- (None) > --- INVENTORY (15) --- Improved Heat Sink Improved Sensor Array Seismic Detector Improved Targeting Computer Peak State ------------ > --- POWER ------------ Light Antimatter Reactor > --- PROPULSION ------- Carbon-fiber Leg Flexi-carbon Leg > --- UTILITY ---------- Large Storage Unit Compact Matter Pod Improved Terrain Scanner Terrain Scan Processor Improved Targeting Computer Gun Armor > --- WEAPON ----------- 1B-0RG's Assimilator > --- INVENTORY -------- Improved Heat Sink Improved Sensor Array Seismic Detector Improved Targeting Computer [Rating: 100] Favorites ----------- Power Light Antimatter Reactor Engine Light Ion Engine Reactor Light Antimatter Reactor Propulsion Armored Wheel Treads Light Treads Leg Flexi-carbon Leg Wheel Armored Wheel Utility Large Storage Unit Device Seismic Detector Storage Large Storage Unit Processor Terrain Scan Processor Protection Gun Armor Weapon Beam Rifle Energy Gun Beam Rifle Energy Cannon Subdweller Beam Cannon Ballistic Gun Light Assault Rifle Ballistic Cannon Battle Cannon Launcher Mini Grenade Launcher Impact Weapon Hammer Special Melee Weapon 1B-0RG's Assimilator Build | -11 -10 -10 -8 -7 -6 ------- Run | Yrd Mat Sub Mat Fac Fac Slots Evolved 8 | . . . 4 2 2 Power . | . . . . . . Propulsion . | . . . . . . Utility 4 | . . . 2 . 2 Weapon 4 | . . . 2 2 . Parts Attached 47 | 8 2 9 11 9 8 Power 6 | 1 . 1 2 1 1 Engine 5 | 1 . 1 2 1 . Core . | . . . . . . Reactor 1 | . . . . . 1 Propulsion 16 | 3 . 4 3 4 2 Treads 6 | 2 . . . 4 . Leg 2 | . . . . . 2 Wheel 8 | 1 . 4 3 . . Hover . | . . . . . . Flight . | . . . . . . Utility 13 | 2 1 1 2 3 4 Device 3 | 1 . 1 . . 1 Storage 4 | 1 1 . 1 . 1 Processor 2 | . . . . . 2 Hackware . | . . . . . . Protection 4 | . . . 1 3 . Artifact . | . . . . . . Weapon 12 | 2 1 3 4 1 1 Energy Gun 4 | 1 1 2 . . . Energy Cannon 1 | . . . 1 . . Ballistic Gun 2 | 1 . . . 1 . Ballistic Cannon 1 | . . 1 . . . Launcher 2 | . . . 2 . . Special Weapon . | . . . . . . Impact Weapon 1 | . . . 1 . . Slashing Weapon . | . . . . . . Piercing Weapon . | . . . . . . Special Melee Weapon 1 | . . . . . 1 Unidentified Prototypes 3 | . . 1 1 . 1 Corrupted Parts 1 | . . . . . 1 System Corruption 7 | . . . . . 7 Parts Lost 27 | . . 3 11 11 2 Power 3 | . . 1 1 1 . Propulsion 10 | . . 1 3 5 1 Utility 5 | . . . 2 3 . Weapon 9 | . . 1 5 2 1 Highest Loss Streak 6 | . . 1 6 3 2 To Critical Strikes 1 | . . . 1 . . Average Backups 6 | 3 3 9 7 7 3 Power 1 | . 1 1 1 . . Propulsion 1 | 2 2 3 1 . . Utility 2 | . . 2 1 6 3 Weapon . | . . 1 1 . . Tool/Special . | . . . . . . Unused Backups 6 | . . 2 . . 4 Power . | . . . . . . Propulsion 1 | . . 1 . . . Utility 5 | . . 1 . . 4 Weapon . | . . . . . . Tool/Special . | . . . . . . Average Slot Usage (%) 74 | . 99 91 72 45 57 Engine 5 | . 14 5 7 6 . Reactor 1 | . . . . . 5 Treads 4 | . 27 2 . 7 . Leg 1 | . . . . . 5 Wheel 11 | . . 25 14 2 . Device 10 | . 14 14 11 2 6 Storage 12 | . 14 14 10 7 12 Processor 3 | . . . . . 12 Protection 4 | . . . 7 14 6 Energy Gun 9 | . 13 17 10 . . Ballistic Gun 3 | . 14 6 . 1 . Ballistic Cannon 2 | . . 3 4 . . Special Melee Weapon 1 | . . . . . 5 Peak Build Rating 100 | 7 9 22 35 33 100 Average Rating 36 | 3 7 13 30 26 92 On Entrance 13 | . 7 9 22 23 18 Avg Prop Armor Cover (%) . | . . . . . . Naked Turns . | . . . . . . Heaviest Build 93 | 12 28 32 45 52 93 Greatest Support 48 | 40 40 40 40 48 35 Greatest Overweight (x) 26 | 1 . 1 12 13 26 Average Overweight (x) 1 | . . . 1 2 4 Largest Inventory Capacity 15 | 8 15 15 15 15 15 Average Capacity 14 | 6 8 15 15 15 15 Most Carried 15 | 5 8 15 15 15 11 Average Carried 8 | 3 3 10 12 12 3 Final Capacity 15 | 8 15 15 15 15 15 Final Carried 15 | 2 8 15 10 12 4 Class Distribution -------------------- 87% | Mutant 11% | Gunner Dominant Class ---------------- Mutant | -10/Materials Mutant | -10/Subcaves Gunner | -8/Materials Mutant | -7/Factory Mutant | -6/Factory Resources | -11 -10 -10 -8 -7 -6 ----------- Run | Yrd Mat Sub Mat Fac Fac Matter Collected 1155 | 239 40 182 359 105 230 Remotely . | . . . . . . Salvage Created 1018 | 153 170 186 309 200 . Parts 59 | 11 12 12 19 5 . Haulers Intercepted . | . . . . . . Recyclers Shooed 1 | 1 . . . . . Parts Field Recycled . | . . . . . . Retrieved Matter . | . . . . . . Parts Self-Destructed 12 | . . 12 . . . Prevented . | . . . . . . Parts Restored . | . . . . . . Kills | -11 -10 -10 -8 -7 -6 ------- Run | Yrd Mat Sub Mat Fac Fac Combat Hostiles Destroyed 21 | . 5 6 8 2 . Melee 1 | . . . 1 . . Guns 12 | . 4 6 . 2 . Cannons 2 | . . . 2 . . AOE 4 | . 1 . 3 . . Classes Destroyed 10 | 2 3 2 2 1 . Worker 4 | . . . 4 . . Tunneler 5 | 4 . . 1 . . Recycler 2 | 1 . . . 1 . Turret 1 | . . 1 . . . Watcher 1 | . 1 . . . . Swarmer 7 | . 3 4 . . . Grunt 9 | . 2 . 7 . . Sentry 2 | . . . . 2 . Specialist 1 | . . . 1 . . Subdweller 2 | . . 2 . . . Best Kill Streak 4 | 4 3 4 3 2 . Combat Bots Only 4 | . 3 4 3 2 . Max Kills in Single Turn 2 | 1 1 1 2 1 . Gunslinging . | . . . . . . Exploded 1 | . 1 . 1 . . Melee 1 | . . . 1 . . Uniques/NPCs Destroyed . | . . . . . . Combat | -11 -10 -10 -8 -7 -6 -------- Run | Yrd Mat Sub Mat Fac Fac Hostile Shots Fired 679 | . 21 84 152 362 60 Missed 234 | . 7 32 43 135 17 Hits 445 | . 14 52 109 227 43 Melee 3 | . . . 3 . . Projectile 442 | . 14 52 106 227 43 Critical Strikes 12 | . . 2 7 . 3 Part Disruptions 1 | . . . . . 1 Damage Taken 5509 | 28 142 744 1709 2114 772 Core 1345 | 28 10 184 425 540 158 Absorbed by Shields . | . . . . . . Regen/Repaired (Parts) 33 | . . . . . 33 Core Remaining (%) 35 | 88 . 11 22 22 . Volleys Fired 89 | 14 9 26 23 17 . Largest 3 | 2 2 2 3 1 . Hottest 145 | 60 60 112 145 28 . Shots Fired 160 | 28 18 51 46 17 . Gun 136 | 28 18 50 23 17 . Cannon 17 | . . 1 16 . . Launcher 7 | . . . 7 . . Special . | . . . . . . Kinetic 65 | 14 9 16 9 17 . Thermal 65 | . . 35 30 . . Explosive 7 | . . . 7 . . Electromagnetic 23 | 14 9 . . . . Robot Hit Streak 19 | 4 8 19 14 10 . Robot Miss Streak 5 | 3 1 4 5 1 . Penetration Max 1 | . . . . 1 . Secondary Targets 2 | . 1 1 . . . Max Gunslinging Chain 1 | . 1 1 . . . Shots Hit Robots 104 | 15 12 26 35 16 . Core Hits 54 | 6 10 9 23 6 . Critical Kills 2 | . . . 1 1 . Critical Parts Destroyed 3 | . . . 2 1 . Critical Strikes 7 | . . 1 4 2 . Burn 2 | . . 1 1 . . Destroy 2 | . . . . 2 . Smash 3 | . . . 3 . . Melee Attacks 9 | . . . 9 . . Impact 9 | . . . 9 . . Slashing . | . . . . . . Piercing . | . . . . . . Sneak Attacks . | . . . . . . Combat Hostiles . | . . . . . . Follow-up Attacks . | . . . . . . Damage Inflicted 2390 | 214 206 362 1279 329 . Guns 1249 | 171 147 354 264 313 . Cannons 225 | . . . 225 . . Explosions 768 | 43 59 . 666 . . Melee 124 | . . . 124 . . Ramming 24 | . . 8 . 16 . Kinetic 557 | 35 24 65 120 313 . Thermal 760 | 43 59 289 369 . . Explosive 666 | . . . 666 . . Electromagnetic 259 | 136 123 . . . . Impact 124 | . . . 124 . . Slashing . | . . . . . . Piercing . | . . . . . . Highest Corruption 11 | . . 2 10 . 11 Average Corruption 3 | . . 2 9 . 8 Corruption Purged . | . . . . . . Corruption Blocked . | . . . . . . Effects 22 | . . 14 6 . 2 Message Errors 8 | . . 5 3 . . Matter Fused 6 | . . 3 1 . 2 Heat Flow Errors 3 | . . 3 . . . Parts Rejected 1 | . . 1 . . . Data Loss (minor) 2 | . . 1 1 . . Data Loss (major) 1 | . . . 1 . . Misfires 1 | . . 1 . . . Overload Shots . | . . . . . . Overflow Damage 72 | 20 . . 52 . . Projectiles . | . . . . . . Explosions 20 | 20 . . . . . Melee 52 | . . . 52 . . Knockbacks 4 | . . . 4 . . Impact 1 | . . . 1 . . Kinetic 3 | . . . 3 . . Secondary . | . . . . . . Self-Inflicted Damage 87 | 28 . 8 51 . . Shots 4 | 1 . . 3 . . Rammed 3 | . 1 . . 2 . Targets Rammed 3 | . 1 . . 2 . Kicked . | . . . . . . Crushed . | . . . . . . Highest Temperature 239 | 32 49 198 239 3 . Average Temperature 57 | 15 23 44 84 2 . Received Heat Transfer 1659 | . 45 189 846 378 201 Siege Activations . | . . . . . . Martial Activations . | . . . . . . Shielding Activations . | . . . . . . Robots Disrupted . | . . . . . . Combat Hostiles . | . . . . . . Robots Corrupted 2 | . . . 2 . . Combat Hostiles 2 | . . . 2 . . Parts Fried 1 | . . . 1 . . Impact Corruptions 2 | . . . 2 . . Robots Melted . | . . . . . . Combat Hostiles . | . . . . . . Parts Melted 2 | . . 2 . . . Heat Transferred 1852 | 50 100 814 888 . . Parts Sabotaged . | . . . . . . Parts Stolen . | . . . . . . Parts Stripped . | . . . . . . Power Chain Reactions 2 | 1 1 . . . . Alert | -11 -10 -10 -8 -7 -6 ------- Run | Yrd Mat Sub Mat Fac Fac Maximum Alert Level 1 | . . . 1 . . Low Security (%) 78 | 100 100 . 22 100 100 Level 1 21 | . . . 77 . . Level 2 . | . . . . . . Level 3 . | . . . . . . Level 4 . | . . . . . . Level 5 . | . . . . . . High Security . | . . . . . . Max Security . | . . . . . . Peak Influence 352 | 10 114 . 352 123 32 Initial 123 | . . . . 123 . Average 74 | 2 36 . 226 28 1 Influence Increases 1508 | 25 148 267 935 65 68 Destroy 0b10 Robot/C 820 | . 100 140 500 40 40 Destroy 0b10 Robot/NC 75 | 25 5 . 40 5 . Destroy Leader 134 | . 22 . 82 20 10 Allied During Kill 236 | . . 7 226 . 3 Successful Hack 21 | . 4 . 17 . . Disable Machine 15 | . . . 15 . . Destroy Structure 42 | . 2 . 40 . . Lose Combat Pursuer 165 | . 15 120 15 . 15 Influence Decreases 1508 | 25 128 287 662 338 68 Entered New Map 160 | . . 10 . 150 . Time Decay 1008 | 25 128 257 372 158 68 Lost Part 160 | . . 20 110 30 . Lost Ally 180 | . . . 180 . . Squads Dispatched 9 | . . . 7 . 2 Investigation 2 | . . . 2 . . Extermination 2 | . . . . . 2 Reinforcement 2 | . . . 2 . . Assault . | . . . . . . Garrison 3 | . . . 3 . . Intercept . | . . . . . . Searches Triggered . | . . . . . . Construction Impeded . | . . . . . . Haulers Reinforced . | . . . . . . Active Scanning Responses . | . . . . . . Cargo Convoy Interrupts . | . . . . . . Stealth | -11 -10 -10 -8 -7 -6 --------- Run | Yrd Mat Sub Mat Fac Fac Distress Signals 7 | . 1 . 4 2 . Communications Jammed . | . . . . . . Distress Signals . | . . . . . . Times Spotted 82 | . 7 23 32 11 9 Peak Tracking Total 6 | . 3 6 5 5 5 Tactical Retreats 5 | . 1 2 1 . 1 Traps | -11 -10 -10 -8 -7 -6 ------- Run | Yrd Mat Sub Mat Fac Fac Traps Triggered 3 | . 1 2 . . . Indirectly . | . . . . . . Trap Hack Attempts . | . . . . . . Triggered . | . . . . . . Disarmed . | . . . . . . Reprogrammed . | . . . . . . Reused . | . . . . . . Traps Extracted . | . . . . . . Installed . | . . . . . . Triggered . | . . . . . . Machines | -11 -10 -10 -8 -7 -6 ---------- Run | Yrd Mat Sub Mat Fac Fac Machines Disabled 4 | . . 3 1 . . Max in Single Turn 1 | . . 1 1 . . Machines Repaired . | . . . . . . Machines Dismantled . | . . . . . . Machines Sabotaged . | . . . . . . Overloaded Fab Kills . | . . . . . . Hacking | -11 -10 -10 -8 -7 -6 --------- Run | Yrd Mat Sub Mat Fac Fac Machines Accessed 10 | . 2 2 4 . 2 Terminals 7 | . 2 . 3 . 2 Fabricators . | . . . . . . Repair Stations . | . . . . . . Recycling Units . | . . . . . . Scanalyzers . | . . . . . . Garrison Access 1 | . . . 1 . . Total Hacks 27 | . 4 13 8 . 2 Successful 18 | . 2 13 2 . 1 Failed 9 | . 2 . 6 . 1 Catastrophic 1 | . . . . . 1 Database Lockouts . | . . . . . . Manual 12 | . 4 . 6 . 2 Terminals 12 | . 4 . 6 . 2 Fabricators . | . . . . . . Repair Stations . | . . . . . . Recycling Units . | . . . . . . Scanalyzers . | . . . . . . Garrison Access 2 | . . . 2 . . Terminal Hacks 13 | . . 13 . . . Record 12 | . . 12 . . . Proto ID Catalog 1 | . . 1 . . . Fabricator Hacks . | . . . . . . Repair Station Hacks . | . . . . . . Recycling Unit Hacks . | . . . . . . Scanalyzer . | . . . . . . Garrison Access Hacks . | . . . . . . Unauthorized Hacks 5 | . 2 . 2 . 1 Terminals 5 | . 2 . 2 . 1 Botnet 5 | . 2 . 2 . 1 Fabricators . | . . . . . . Repair Stations . | . . . . . . Recycling Units . | . . . . . . Scanalyzers . | . . . . . . Garrison Access . | . . . . . . Data Cores Recovered . | . . . . . . Used . | . . . . . . Hacking Detections 6 | . 1 . 4 . 1 Full Trace Events 2 | . . . 2 . . Feedback Events . | . . . . . . Feedback Blocked . | . . . . . . Robot Schematics Acquired . | . . . . . . Robots Built . | . . . . . . Authchips . | . . . . . . Time . | . . . . . . Total Robot Build Rating . | . . . . . . Part Schematics Acquired . | . . . . . . Parts Built . | . . . . . . Authchips . | . . . . . . Time . | . . . . . . Total Part Build Rating . | . . . . . . Part Studies Acquired . | . . . . . . Parts Repaired . | . . . . . . Time . | . . . . . . Parts Recycled . | . . . . . . Recycled Matter . | . . . . . . Retrieved Matter . | . . . . . . Retrieved Components . | . . . . . . Parts Scanalyzed . | . . . . . . Part Schematics Acquired . | . . . . . . Parts Damaged . | . . . . . . Bothacking | -11 -10 -10 -8 -7 -6 ------------ Run | Yrd Mat Sub Mat Fac Fac Used RIF Installer . | . . . . . . Robots Hacked . | . . . . . . Non-combat . | . . . . . . Combat . | . . . . . . Robot Hacks Applied . | . . . . . . Relay Couplers Released . | . . . . . . Fabnet Peak Effective % . | . . . . . . Robots Rewired . | . . . . . . Allies Hacked 1 | . . . . . 1 Hacks Repelled . | . . . . . . Allies | -11 -10 -10 -8 -7 -6 -------- Run | Yrd Mat Sub Mat Fac Fac Total Allies 17 | . . 16 . . 1 Largest Group 13 | . . 13 12 . . Highest-Rated Group 247 | . . 247 228 . . Highest-Rated Ally 19 | . . 19 19 . . Total Orders . | . . . . . . Ally Attacks 171 | . . 30 130 . 11 Total Damage 2803 | . . 479 1978 . 346 Kills 28 | . . 3 23 . 2 Allies Corrupted 1 | . . . . . 1 Allies Melted . | . . . . . . Borg Created 4 | . . . . . 4 Largest Collective 1 | . . . . . 1 Intel | -11 -10 -10 -8 -7 -6 ------- Run | Yrd Mat Sub Mat Fac Fac Active Infowar (turns) 3052 | 13 444 291 918 227 1159 Terrain 1159 | . . . . . 1159 Seismic 1893 | 13 444 291 918 227 . Robot Analysis Total . | . . . . . . Derelict Logs Recovered 2 | . . 2 . . . Drone Launches . | . . . . . . Drone Recoveries . | . . . . . . Exploration | -11 -10 -10 -8 -7 -6 ------------- Run | Yrd Mat Sub Mat Fac Fac Turns Passed 4893 | 118 444 1613 923 636 1159 Spaces Moved 2762 | 61 198 1298 614 325 266 Core 69 | 43 . . 2 9 15 Treads 415 | 18 198 42 . 157 . Legs 251 | . . . . . 251 Wheels 2027 | . . 1256 612 159 . Hover . | . . . . . . Flight . | . . . . . . Fastest Speed 50 | 50 160 95 105 125 260 Average Speed 146 | 103 160 101 110 173 415 Slowest Speed 1350 | 160 160 240 650 700 1350 Overloaded Moves . | . . . . . . Propulsion Burnouts . | . . . . . . Robots Hopped . | . . . . . . Potential Cave-ins . | . . . . . . Cave-ins Triggered . | . . . . . . Exploration Rate (%) 31 | 3 38 75 58 10 4 Regions Visited 5 Branch Regions 1 Pre-discovered Areas 1 | . . 1 . . . Known Exits Taken 2 | . . . 1 1 . Unknown Exits Taken 3 | 1 1 1 . . . Scrap Searched 3 | . . 3 . . . Spaces Dug 7 | . . . 7 . . Terrain Destroyed 35 | 3 2 . 30 . . Melee . | . . . . . . Projectile 5 | . . . 5 . . AOE 30 | 3 2 . 25 . . Terrain Rammed 1 | . . 1 . . . Walls Destroyed . | . . . . . . Machines Disabled . | . . . . . . Actions | -11 -10 -10 -8 -7 -6 --------- Run | Yrd Mat Sub Mat Fac Fac Total 3439 | 89 308 1548 804 381 309 Wait 459 | . 89 198 131 16 25 Move 2757 | 60 197 1297 613 324 266 Hop . | . . . . . . Pick Up 47 | 6 6 11 9 11 4 Fast Attach 8 | 4 3 . . 1 . Attach 37 | 3 . 5 13 8 8 Detach 1 | . . . 1 . . Swap 8 | 1 1 5 1 . . Drop 14 | 1 2 5 4 2 . Fire 89 | 14 9 26 23 17 . Melee 9 | . . . 9 . . Ram 1 | . . 1 . . . Kick . | . . . . . . Crush 3 | . 1 . . 2 . Escape Stasis . | . . . . . . Rewire 1 | . . . . . 1 Trap . | . . . . . . Miscellaneous 5 | . . . . . 5 Route ------- -11/Scrapyard -10/Materials (discovered 2 exits: [*Min] / *Sub) -10/Subcaves (discovered 3 exits: *Mat x2 / [*Rec]) -8/Materials (discovered 2 exits: *Fac x2) -7/Factory (discovered 5 exits: *Fac x3 / *Low x2) -6/Factory History --------- Turn | Location | Event 20 | -11/Scrapyard | Discovered new exit (range 15) 119 | -11/Scrapyard | Entered Materials 317 | -10/Materials | Build established: Mutant 348 | -10/Materials | Discovered new exit (range 7) 557 | -10/Materials | Discovered new exit (range 5) 563 | -10/Materials | Entered Subcaves 564 | -10/Subcaves | Approached by a straggling Scientist 795 | -10/Subcaves | Discovered new exit (range 15) 839 | -10/Subcaves | Visited triangular shrine 853 | -10/Subcaves | Found Prototype Device 854 | -10/Subcaves | Identified V3-11A's Pendant 859 | -10/Subcaves | Befriended Subdweller 889 | -10/Subcaves | Befriended Subdweller 889 | -10/Subcaves | Befriended Subdweller 907 | -10/Subcaves | A swath of the cavern ceiling suddenly collapsed 1099 | -10/Subcaves | Discovered new exit (range 10) 1179 | -10/Subcaves | Befriended Subdweller 1326 | -10/Subcaves | Learned location of 1 exit from Materials 1459 | -10/Subcaves | Befriended Subdweller 1459 | -10/Subcaves | Befriended Subdweller 1459 | -10/Subcaves | Befriended Subdweller 1459 | -10/Subcaves | Befriended Subdweller 1460 | -10/Subcaves | Core integrity fell below 50% 1564 | -10/Subcaves | Visited Clippyterm 1567 | -10/Subcaves | Learned 40 Factory zone layouts 1684 | -10/Subcaves | Befriended Subdweller 1802 | -10/Subcaves | Visited 4L-MR0's lab 1804 | -10/Subcaves | Befriended Subdweller 1804 | -10/Subcaves | Befriended Subdweller 1804 | -10/Subcaves | Befriended Subdweller 1817 | -10/Subcaves | Found Prototype Special Melee Weapon 1830 | -10/Subcaves | Found Gun Armor 2108 | -10/Subcaves | Ambushed by Subdwellers from Twisted Machinery 2109 | -10/Subcaves | Befriended Subdweller 2109 | -10/Subcaves | Befriended Subdweller 2114 | -10/Subcaves | Befriended Subdweller 2127 | -10/Subcaves | Core integrity fell below 20% 2139 | -10/Subcaves | Befriended Subdweller 2144 | -10/Subcaves | Discovered new exit (range 7) 2161 | -10/Subcaves | Lost 3 allies 2176 | -10/Subcaves | Entered Materials 2176 | -8/Materials | Accompanied by 12 allies 2176 | -8/Materials | Evolved 4 slots: Utility x2, Weapon x2 2177 | -8/Materials | Identified exit to Factory 2179 | -8/Materials | Attached Gun Armor, gained temporary slots: Weapon x2 2488 | -8/Materials | Build established: Gunner 2565 | -8/Materials | Lost 3 allies 2608 | -8/Materials | Discovered exit to Factory (range 16) 2786 | -8/Materials | Lost 6 allies 2859 | -8/Materials | Garrison activated, responded to threat 2872 | -8/Materials | Core integrity fell below 50% 2901 | -8/Materials | Lost 6 parts (1p2n3w) 2999 | -8/Materials | System corruption reached 10% 3099 | -8/Materials | Entered Factory 3099 | -7/Factory | Evolved 2 slots: Weapon x2 3100 | -7/Factory | Identified exit to Lower Caves 3100 | -7/Factory | Identified exit to Factory 3260 | -7/Factory | Discovered exit to Lower Caves (range 11) 3333 | -7/Factory | Build established: Mutant 3372 | -7/Factory | Lost 3 parts (1n1u1w) 3675 | -7/Factory | Core integrity fell below 50% 3687 | -7/Factory | Lost 3 parts (1p2n) 3735 | -7/Factory | Entered another Factory area 3735 | -6/Factory | Evolved 2 slots: Utility x2 3784 | -6/Factory | Identified 1B-0RG's Assimilator 3788 | -6/Factory | Assimilating Veteran 5a into Collective. 3799 | -6/Factory | Assimilating Soldier 5a into Collective. 4863 | -6/Factory | System corruption reached 10% 4881 | -6/Factory | Assimilating Hacker 5a into Collective. 4890 | -6/Factory | Assimilating Soldier 5b into Collective. 4894 | -6/Factory | Self-destructed Last Messages --------------- 1B-0RG's Assimilator injects Hacker 5a to begin assimilation process, ETC: 18. Flexi-carbon Leg destroyed. K-01 Serf cleans the Garrison Access. B-48 Gladiator sneak attacks. Borg Hacker 5a suffers critical hit (Smash). Borg Hacker 5a system corrupted by crushing effect. K-01 Serf cleans the Garrison Access. B-48 Gladiator sneak attacks. Borg Hacker 5a system corrupted by crushing effect. Borg Hacker 5a destroyed. Core damaged by loss of Borg Hacker 5a (-8). 1B-0RG's Assimilator injects Soldier 5b to begin assimilation process, ETC: 20. 1B-0RG's Assimilator destroyed. B-48 Gladiator sneak attacks. System corrupted: Matter fused (-9). Critical hit (Burn: +37). Map ----- +----------------------------------------------------+ | ?????????????????????????????????????????????????? | | ?????????????????????????????????????????????????? | | ?????????????????????????????????????????????????? | | ?????????????????????????????????????????????????? | | ?????????????????????????????????????????????????? | | ?????????????????????????????????????????????????" | | ?????????????????????????????????????????????????" | | ????????????????????? ? ? ?????????????????? ?"" | | ???????????????????? ??? ????? ??? ??#???????????? | | ????????????????? ???? #? ?? ? ? ??#????????"" | | ??????????????????+#???##??? ? ? ??####? "?? "?" | | ????????????????? ?? ?####? ? ? + """ ??" | | ?????????????? ? ??? ###################? | | ?????????????#???? ???###?##?##??################ | | ???????????? ? ?"??"?? ?###??##?################?# | | ?????????????##?##?#?#?####?##########?#?######### | | ????????????? ? ?#???? ??? ? #?################## | | ??????????????#??? ? ?"" ?################### | | ?????????????##? # ? """ ## #### | | ???????????????? #? ? ? """ ## ^ | | ?????????????????# ?? ? ## ^ ^ | | ?????????????#?? ######+######## """ ^""" ^ | | ???????????/??? ""G"" ^""""" """"" " | | ?????????????## ""^"" b """" """"" " | | ??????????????# ^ k g g% %= | | ????????????### g @ | | ??????????????# ^ """ | | ?????????????## """ ########## ############### | | ?????????????## """ u #?#?###### ## ######## | | ????????????##?? ########## ## ###### | | ???????????##??? [ ?#?####### ## + " | | ??????????????? #####+##########+## ###### " | | ??????????????##+## ? ?# # ###### " | | ???????????????? ?# ????" # """ # ###### " | | ???????????????? ? """ ?# """ # ###### " | | ??????????????? ?# """ # "" """ # ###### " | | ??????????????????# ? #""" # ###### | | ????????????????? ?? ?""" #"T """ + ###### | | ??????????????????? ??""" #""" """ # ###### | | ??????????????????? ??""? # "" """ # T##### " | | ??????????????????? ? ? ??# # ##### " | | ???????????????????????#?#?######+### ######## | | ?????????????????????????? ? ? ? | | ??????????????????? ? ? ???? ? | | ?????????????????? ?????? ?? ????? | | ???????????????????????? ? ?? ? ? | | ?????????????????????? ?? ????? ? | | ????????????????????#??????##?##?+################ | | ???????????????????? ? ??? ???? ? ? ?########?## | | ?????????????????????? ???? ?? ??""? ########### | +----------------------------------------------------+ Best States ------------- Heat Dissipation 37 Energy Generation 21 Energy Capacity 480 Matter Stores 440 Matter Capacity 450 Sight Range 16 Terrain Scan Range 16 Terrain Scan Density 85 Armor Coverage 860 Evasion (%) 50 Targeting Accuracy 6 Recoil Reduction 2 Item Schematics ----------------- None Robot Schematics ------------------ None Fabricated ------------ Nothing Repaired ---------- Nothing Studied --------- None Alien Tech Used ----------------- None Achievements -------------- I, Locutus SUBSUB Challenges ------------ None Game ------ Seed MomentumBoltStorage Manual? 0 Play Time 00:34:17 Cumulative 38.3 hours Start 2026.02.23 @ 00:05:51 End 2026.02.23 @ 00:40:15 Sessions 1 Manual Loads 0 Difficulty Rogue Special Mode None Game No. 90 Rogue 90 Adventurer 0 Explorer 0 Win Type - Total 0 Types 0/0/0/0/0/0/0/0/0/0 Lore% 29 Gallery% 35 Achievement% 26 Wizard Run 0 Options --------- Layout 1 ASCII 0 Keyboard 0 Movement Mouse Keybinds 0 Fullscreen 1 Font 24/Smallcaps Map View 50x35 Zoom Use 0% Tactical HUD 0 Map Filters NONE Filters NONE Steam 1 RUN: d3d357bd-34c9-4855-bbbe-108ad2696038